fUSD/lending_fUSD_20240720
["ID","MTS","AMOUNT","RATE_DAILY","PERIOD"]
[332693081,1721452294987,-738.58,0.00033424,14]
[332693082,1721452294996,-814.05,0.00033424,14]
[332693083,1721452295006,-500.0,0.00033424,14]
[332693084,1721452295015,-731.2,0.00033424,14]
[332693085,1721452295024,-1471.14,0.00033424,14]
[332693086,1721452295034,-4935.97,0.00033424,14]
[332693087,1721452295043,-3510.37,0.00033424,14]
[332693088,1721452295052,-1229.29,0.00033424,14]
[332693089,1721452295061,-500.0,0.00033424,14]
[332693090,1721452295070,-500.0,0.00033424,14]
[332693091,1721452295079,-1164.69,0.00033424,14]
[332693092,1721452295089,-500.0,0.00033424,14]
[332693093,1721452295098,-3419.7,0.00033424,14]
[332693094,1721452295106,-500.0,0.00033424,14]
[332693095,1721452295116,-795.79,0.00033424,14]
[332693096,1721452295125,-1370.44,0.00033424,14]
[332693097,1721452295134,-500.0,0.00033424,14]
[332693098,1721452295143,-500.0,0.00033424,14]
[332693099,1721452295153,-500.0,0.00033424,14]
[332693100,1721452295162,-5518.78,0.00033424,14]
[332693101,1721452295171,-500.0,0.00033424,14]
[332693102,1721452295180,-500.0,0.00033424,14]
[332693103,1721452295189,-500.0,0.00033424,14]
[332693104,1721452295198,-855.69,0.00033424,14]
[332693105,1721452295207,-505.07400025,0.00033424,14]
[332693106,1721452295216,-1428.43,0.00033424,14]
[332693107,1721452295225,-1414.58,0.00033424,14]
[332693108,1721452295235,-500.0,0.00033424,14]
[332693109,1721452295244,-1661.1,0.00033424,14]
[332693110,1721452295254,-1024.94,0.00033424,14]
[332693111,1721452295263,-1024.94,0.00033424,14]
[332693112,1721452295272,-500.0,0.00033424,14]
[332693113,1721452295281,-500.0,0.00033424,14]
[332693114,1721452295290,-505.43801944,0.00033424,14]
[332693115,1721452295300,-417.674845,0.00033424,7]
[332693116,1721452295309,-500.0,0.00033424,14]
[332693117,1721452295318,-867.72,0.00033424,14]
[332693118,1721452295327,-500.0,0.00033424,14]
[332693119,1721452295336,-5718.78,0.00033424,14]
[332693120,1721452295345,-500.0,0.00033424,14]
[332693121,1721452295355,-601.33,0.00033424,14]
[332693122,1721452295363,-1256.52,0.00033424,14]
[332693123,1721452295373,-417.674845,0.00033424,7]
[332693124,1721452295382,-500.0,0.00033424,14]
[332693125,1721452295391,-2364.4,0.00033424,14]
[332693126,1721452295401,-1122.57,0.00033424,14]
[332693127,1721452295410,-500.0,0.00033424,14]
[332693128,1721452295419,-508.12919664,0.00033424,14]
[332693129,1721452295428,-3777.43,0.00033424,14]
[332693130,1721452295437,-1287.89,0.00033424,14]
[332693131,1721452295446,-500.0,0.00033424,14]
[332693132,1721452295455,-2909.95,0.00033424,14]
[332693133,1721452295464,-500.0,0.00033424,14]
[332693134,1721452295474,-500.0,0.00033424,14]
[332693135,1721452295483,-500.0,0.00033424,14]
[332693136,1721452295492,-476.62126676,0.00033424,14]
[332693137,1721452295501,-519.36,0.00033424,14]
[332693138,1721452295511,-500.0,0.00033424,14]
[332693139,1721452295520,-516.51946563,0.00033424,14]
[332693140,1721452295529,-7748.76,0.00033424,14]
[332693141,1721452295538,-522.45610926,0.00033424,14]
[332693142,1721452295549,-2623.21,0.00033424,14]
[332693143,1721452295559,-3248.84,0.00033424,14]
[332693144,1721452295568,-3223.85,0.00033424,14]
[332693145,1721452295577,-753.17,0.00033424,14]
[332693146,1721452295587,-500.0,0.00033424,14]
[332693147,1721452295599,-500.0,0.00033424,14]
[332693148,1721452295609,-1040.19,0.00033424,14]
[332693149,1721452295618,-500.0,0.00033424,14]
[332693150,1721452295627,-500.0,0.00033424,14]
[332693151,1721452295637,-1843.55,0.00033424,14]
[332693152,1721452295646,-500.0,0.00033424,14]
[332693153,1721452295655,-5092.61,0.00033424,14]
[332693154,1721452295665,-500.0,0.00033424,14]
[332693155,1721452295674,-500.0,0.00033424,14]
[332693156,1721452295683,-985.71,0.00033424,14]
[332693157,1721452295692,-500.0,0.00033424,14]
[332693158,1721452295702,-2260.04,0.00033424,14]
[332693159,1721452295711,-690.64,0.00033424,14]
[332693160,1721452295720,-500.0,0.00033424,14]
[332693161,1721452295729,-500.0,0.00033424,14]
[332693162,1721452295738,-1121.01,0.00033424,14]
[332693163,1721452295747,-1524.14,0.00033424,14]
[332693164,1721452295756,-1503.86,0.00033424,14]
[332693165,1721452295765,-514.69690467,0.00033424,14]
[332693166,1721452295775,-500.0,0.00033424,14]
[332693167,1721452295784,-3751.65,0.00033424,14]
[332693168,1721452295793,-500.0,0.00033424,2]
[332693169,1721452295803,-500.0,0.00033424,14]
[332693170,1721452295812,-500.0,0.00033424,14]
[332693171,1721452295822,-1947.42,0.00033424,14]
[332693172,1721452295831,-527.94647281,0.00033424,14]
[332693173,1721452295841,-176.579726,0.00033424,7]
[332693174,1721452295851,-500.0,0.00033424,14]
[332693175,1721452295861,-950.08,0.00033424,14]
[332693176,1721452295870,-1504.54,0.00033424,14]
[332693177,1721452295880,-500.0,0.00033424,14]
[332693178,1721452295889,-500.0,0.00033424,14]
[332693179,1721452295899,-2533.37,0.00033424,14]
[332693180,1721452295909,-500.0,0.00033424,14]
[332693181,1721452295919,-896.76,0.00033424,14]
[332693182,1721452295929,-579.64695992,0.00033424,14]
[332693183,1721452295938,-500.0,0.00033424,14]
[332693184,1721452295947,-552.56,0.00033424,14]
[332693185,1721452295957,-500.0,0.00033424,14]
[332693186,1721452295967,-14489.0,0.00033424,14]
[332693187,1721452295976,-1465.63,0.00033424,14]
[332693188,1721452295985,-500.0,0.00033424,14]
[332693189,1721452295996,-698.57,0.00033424,14]
[332693190,1721452296005,-2480.15,0.00033424,14]
[332693191,1721452296016,-696.41,0.00033424,14]
[332693192,1721452296025,-500.0,0.00033424,14]
[332693193,1721452296035,-500.0,0.00033424,14]
[332693194,1721452296044,-500.0,0.00033424,14]
[332693195,1721452296054,-500.0,0.00033424,14]
[332693196,1721452296064,-151.0,0.00033424,7]
[332693197,1721452296073,-2104.4,0.00033424,14]
[332693198,1721452296083,-3078.84,0.00033424,14]
[332693199,1721452296092,-500.0,0.00033424,14]
[332693200,1721452296102,-884.369856,0.00033424,7]
[332693201,1721452296112,-703.93,0.00033424,14]
[332693202,1721452296122,-1047.59,0.00033424,14]
[332693203,1721452296132,-500.0,0.00033424,14]
[332693204,1721452296142,-500.0,0.00033424,14]
[332693205,1721452296151,-501.19470861,0.00033424,14]
[332693206,1721452296161,-3181.26,0.00033424,14]
[332693207,1721452296170,-151.0,0.00033424,7]
[332693208,1721452296180,-884.369856,0.00033424,7]
[332693209,1721452296189,-500.0,0.00033424,14]
[332693210,1721452296199,-500.0,0.00033424,14]
[332693211,1721452296208,-571.85280264,0.00033424,14]
[332693212,1721452296218,-3280.76,0.00033424,14]
[332693213,1721452296227,-2612.66,0.00033424,14]
[332693214,1721452296236,-1071.06,0.00033424,14]
[332693215,1721452296246,-500.0,0.00033424,14]
[332693216,1721452296255,-1049.87,0.00033424,14]
[332693217,1721452296265,-792.59,0.00033424,14]
[332693218,1721452296274,-1022.95,0.00033424,14]
[332693219,1721452296284,-6852.05,0.00033424,14]
[332693220,1721452296294,-621.06,0.00033424,14]
[332693221,1721452296303,-500.0,0.00033424,14]
[332693222,1721452296312,-500.0,0.00033424,14]
[332693223,1721452296322,-500.0,0.00033424,14]
[332693224,1721452296331,-840.65,0.00033424,14]
[332693225,1721452296341,-500.0,0.00033424,14]
[332693226,1721452296350,-560.40864587,0.00033424,14]
[332693227,1721452296360,-5155.85,0.00033424,14]
[332693228,1721452296370,-977.33,0.00033424,14]
[332693229,1721452296380,-2556.95,0.00033424,14]
[332693230,1721452296390,-500.0,0.00033424,14]
[332693231,1721452296399,-7638.3,0.00033424,14]
[332693232,1721452296603,-500.0,0.00033424,14]
[332693233,1721452296613,-2668.32,0.00033424,14]
[332693234,1721452296623,-680.34,0.00033424,14]
[332693235,1721452296632,-500.0,0.00033424,14]
[332693236,1721452296642,-747.2,0.00033424,14]
[332693237,1721452296651,-939.37,0.00033424,14]
[332693238,1721452296661,-7834.82,0.00033424,14]
[332693239,1721452296671,-1116.468242,0.00033424,7]
[332693240,1721452296680,-500.0,0.00033424,14]
[332693241,1721452296690,-2497.76,0.00033424,14]
[332693242,1721452296699,-500.0,0.00033424,14]
[332693243,1721452296708,-200.0,0.00033424,7]
[332693244,1721452296718,-500.0,0.00033424,14]
[332693245,1721452296727,-500.0,0.00033424,14]
[332693246,1721452296736,-675.73,0.00033424,14]
[332693247,1721452296745,-500.0,0.00033424,14]
[332693248,1721452296755,-873.37,0.00033424,14]
[332693249,1721452296764,-1766.02,0.00033424,14]
[332693250,1721452296773,-1231.81,0.00033424,14]
[332693251,1721452296782,-1116.468242,0.00033424,7]
[332693252,1721452296791,-1298.26,0.00033424,14]
[332693253,1721452296801,-2756.06,0.00033424,14]
[332693254,1721452296811,-500.0,0.00033424,14]
[332693255,1721452296820,-500.0,0.00033424,14]
[332693256,1721452296830,-3099.39,0.00033424,14]
[332693257,1721452296839,-822.69,0.00033424,14]
[332693258,1721452296849,-500.0,0.00033424,14]
[332693259,1721452296858,-1482.76,0.00033424,14]
[332693260,1721452296867,-738.39,0.00033424,14]
[332693261,1721452296877,-500.0,0.00033424,14]
[332693262,1721452296887,-1608.13,0.00033424,14]
[332693263,1721452296896,-6235.61,0.00033424,14]
[332693264,1721452296905,-1663.14,0.00033424,14]
[332693265,1721452296915,-189.59079623,0.00033424,14]
[332693266,1721452296926,-500.0,0.00033424,14]
[332693267,1721452296935,-3638.21,0.00033424,14]
[332693268,1721452296945,-1194.14,0.00033424,14]
[332693269,1721452296955,-500.0,0.00033424,30]
[332693270,1721452296964,-500.0,0.00033424,14]
[332693271,1721452296974,-500.0,0.00033424,14]
[332693272,1721452296983,-500.0,0.00033424,14]
[332693273,1721452296993,-500.0,0.00033424,14]
[332693274,1721452297002,-500.0,0.00033424,14]
[332693275,1721452297014,-6855.68,0.00033424,14]
[332693276,1721452297024,-500.0,0.00033424,14]
[332693277,1721452297033,-500.0,0.00033424,14]
[332693278,1721452297042,-1491.07,0.00033424,14]
[332693279,1721452297052,-500.0,0.00033424,14]
[332693280,1721452297061,-500.0,0.00033424,14]
[332693281,1721452297071,-350.82449689,0.00033424,14]
[332693282,1721452297080,-500.0,0.00033424,14]
[332693283,1721452297089,-500.0,0.00033424,14]
[332693284,1721452297099,-500.0,0.00033424,14]
[332693285,1721452297108,-500.0,0.00033424,14]
[332693286,1721452297118,-478.28133909,0.00033424,14]
[332693287,1721452297127,-3305.37,0.00033424,14]
[332693288,1721452297137,-3485.91,0.00033424,14]
[332693289,1721452297146,-500.0,0.00033424,14]
[332693290,1721452297157,-500.0,0.00033424,14]
[332693291,1721452297167,-500.0,0.00033424,14]
[332693292,1721452297177,-558.69,0.00033424,14]
[332693293,1721452297187,-3149.89,0.00033424,14]
[332693294,1721452297196,-500.0,0.00033424,14]
[332693295,1721452297206,-953.68,0.00033424,14]
[332693296,1721452297215,-1857.46,0.00033424,14]
[332693297,1721452297224,-500.0,0.00033424,14]
[332693298,1721452297234,-7942.67,0.00033424,14]
[332693299,1721452297243,-500.0,0.00033424,14]
[332693300,1721452297253,-707.35,0.00033424,14]
[332693301,1721452297262,-500.0,0.00033424,14]
[332693302,1721452297272,-500.0,0.00033424,14]
[332693303,1721452297281,-500.0,0.00033424,14]
[332693304,1721452297291,-500.0,0.00033424,14]
[332693305,1721452297300,-1474.38,0.00033424,14]
[332693306,1721452297309,-1637.6,0.00033424,14]
[332693307,1721452297319,-3070.19,0.00033424,14]
[332693308,1721452297328,-507.96319037,0.00033424,14]
[332693309,1721452297338,-7567.17,0.00033424,14]
[332693310,1721452297348,-678.65,0.00033424,14]
[332693311,1721452297358,-500.0,0.00033424,14]
[332693312,1721452297368,-301.412,0.00033424,7]
[332693313,1721452297377,-500.0,0.00033424,14]
[332693314,1721452297387,-500.0,0.00033424,14]
[332693315,1721452297397,-1535.24,0.00033424,14]
[332693316,1721452297406,-500.0,0.00033424,14]
[332693317,1721452297416,-500.0,0.00033424,14]
[332693318,1721452297425,-500.0,0.00033424,14]
[332693319,1721452297434,-301.412,0.00033424,7]
[332693320,1721452297444,-536.05944788,0.00033424,14]
[332693321,1721452297453,-1075.68,0.00033424,14]
[332693322,1721452297463,-500.0,0.00033424,14]
[332693323,1721452297472,-2237.11,0.00033424,14]
[332693324,1721452297482,-500.0,0.00033424,14]
[332693325,1721452297491,-868.02,0.00033424,14]
[332693326,1721452297501,-500.0,0.00033424,14]
[332693327,1721452297511,-500.0,0.00033424,14]
[332693328,1721452297520,-500.0,0.00033424,14]
[332693329,1721452297529,-500.0,0.00033424,14]
[332693330,1721452297539,-4021.1,0.00033424,14]
[332693331,1721452297548,-4350.27,0.00033424,14]
[332693332,1721452297558,-500.0,0.00033424,14]
[332693333,1721452297568,-501.46905774,0.00033424,14]
[332693334,1721452297578,-2322.17,0.00033424,14]
[332693335,1721452297587,-513.84701783,0.00033424,14]
[332693336,1721452297601,-508.13156717,0.00033424,14]
[332693337,1721452297610,-2299.12,0.00033424,14]
[332693338,1721452297619,-500.0,0.00033424,14]
[332693339,1721452297631,-4549.79,0.00033424,14]
[332693340,1721452297640,-500.0,0.00033424,14]
[332693341,1721452297650,-500.0,0.00033424,14]
[332693342,1721452297660,-690.39,0.00033424,14]
[332693343,1721452297671,-192.44349591,0.00033424,14]
[332693344,1721452297680,-727.88,0.00033424,14]
[332693345,1721452297690,-500.0,0.00033424,14]
[332693346,1721452297701,-2308.61,0.00033424,14]
[332693347,1721452297711,-500.0,0.00033424,14]
[332693348,1721452297721,-500.0,0.00033424,14]
[332693349,1721452297730,-508.38119602,0.00033424,14]
[332693350,1721452297739,-2345.67,0.00033424,14]
[332693351,1721452297750,-897.7,0.00033424,14]
[332693352,1721452297760,-2219.37,0.00033424,14]
[332693353,1721452297770,-500.0,0.00033424,14]
[332693354,1721452297780,-714.91,0.00033424,14]
[332693355,1721452297790,-1447.59,0.00033424,14]
[332693356,1721452297799,-3887.56,0.00033424,14]
[332693357,1721452297810,-500.0,0.00033424,14]
[332693358,1721452297820,-1829.99,0.00033424,14]
[332693359,1721452297829,-500.0,0.00033424,14]
[332693360,1721452297839,-500.0,0.00033424,14]
[332693361,1721452297848,-500.0,0.00033424,14]
[332693362,1721452297859,-500.0,0.00033424,14]
[332693363,1721452297868,-500.0,0.00033424,14]
[332693364,1721452297877,-500.0,0.00033424,14]
[332693365,1721452297887,-3908.15,0.00033424,14]
[332693366,1721452297896,-500.0,0.00033424,14]
[332693367,1721452297906,-2286.14,0.00033424,14]
[332693368,1721452297915,-2250.72,0.00033424,14]
[332693369,1721452297925,-500.0,0.00033424,14]
[332693370,1721452297935,-630.28,0.00033424,14]
[332693371,1721452297944,-1101.72,0.00033424,14]
[332693372,1721452297954,-500.0,0.00033424,14]
[332693373,1721452297963,-3419.99,0.00033424,14]
[332693374,1721452297972,-500.0,0.00033424,14]
[332693375,1721452297982,-1956.67,0.00033424,14]
[332693376,1721452297991,-500.0,0.00033424,14]
[332693377,1721452298000,-2493.86,0.00033424,14]
[332693378,1721452298009,-500.0,0.00033424,14]
[332693379,1721452298019,-3643.83,0.00033424,14]
[332693380,1721452298028,-500.0,0.00033424,14]
[332693381,1721452298037,-500.0,0.00033424,14]
[332693382,1721452298047,-500.0,0.00033424,14]
[332693383,1721452298056,-1806.09,0.00033424,14]
[332693384,1721452298065,-2478.72,0.00033424,14]
[332693385,1721452298074,-500.0,0.00033424,14]
[332693386,1721452298084,-500.0,0.00033424,14]
[332693387,1721452298093,-500.0,0.00033424,14]
[332693388,1721452298104,-522.24,0.00033424,14]
[332693389,1721452298113,-1611.07,0.00033424,14]
[332693390,1721452298122,-500.0,0.00033424,14]
[332693391,1721452298132,-4399.51,0.00033424,14]
[332693392,1721452298141,-500.0,0.00033424,14]
[332693393,1721452298150,-500.0,0.00033424,14]
[332693394,1721452298159,-2764.89,0.00033424,14]
[332693395,1721452298168,-500.0,0.00033424,14]
[332693396,1721452298178,-758.97,0.00033424,14]
[332693397,1721452298187,-1253.47,0.00033424,14]
[332693398,1721452298197,-2010.33,0.00033424,14]
[332693399,1721452298206,-4422.6,0.00033424,14]
[332693400,1721452298216,-500.0,0.00033424,14]
[332693401,1721452298225,-505.31283238,0.00033424,14]
[332693402,1721452298235,-500.0,0.00033424,14]
[332693403,1721452298244,-782.08,0.00033424,14]
[332693404,1721452298253,-500.0,0.00033424,14]
[332693405,1721452298263,-503.68405125,0.00033424,14]
[332693406,1721452298273,-3857.12,0.00033424,14]
[332693407,1721452298282,-526.0267365,0.00033424,14]
[332693408,1721452298291,-670.79,0.00033424,14]
[332693409,1721452298301,-500.0,0.00033424,14]
[332693410,1721452298310,-500.0,0.00033424,14]
[332693411,1721452298318,-738.12,0.00033424,14]
[332693412,1721452298326,-500.0,0.00033424,14]
[332693413,1721452298336,-500.0,0.00033424,14]
[332693414,1721452298346,-511.05,0.00033424,14]
[332693415,1721452298355,-500.0,0.00033424,14]
[332693416,1721452298365,-2474.15,0.00033424,14]
[332693417,1721452298374,-2276.68,0.00033424,14]
[332693418,1721452298383,-1039.92,0.00033424,2]
[332693419,1721452298393,-500.0,0.00033424,14]
[332693420,1721452298403,-500.0,0.00033424,14]
[332693421,1721452298412,-500.0,0.00033424,14]
[332693422,1721452298422,-2869.88,0.00033424,14]
[332693423,1721452298431,-773.67,0.00033424,14]
[332693424,1721452298441,-935.74,0.00033424,14]
[332693425,1721452298450,-1504.33,0.00033424,14]
[332693426,1721452298459,-2544.71,0.00033424,14]
[332693427,1721452298469,-500.0,0.00033424,14]
[332693428,1721452298478,-643.79,0.00033424,14]
[332693429,1721452298487,-500.0,0.00033424,14]
[332693430,1721452298496,-1507.73,0.00033424,14]
[332693431,1721452298505,-2587.33,0.00033424,14]
[332693432,1721452298515,-500.0,0.00033424,14]
[332693433,1721452298524,-1314.27,0.00033424,14]
[332693434,1721452298533,-500.0,0.00033424,14]
[332693435,1721452298543,-151.5680096,0.00033433,7]
[332693436,1721452298553,-151.64406532,0.00033474,7]
[332693437,1721452298563,-1287.99776217,0.0003349,30]
[332693438,1721452298572,-217.54,0.000335,31]
[332693439,1721452298581,-217.54,0.000335,31]
[332693440,1721452298591,-217.54,0.000335,31]
[332693441,1721452298602,-217.54,0.000335,31]
[332693442,1721452298612,-217.54,0.000335,31]
[332693443,1721452298622,-217.54,0.000335,31]
[332693444,1721452298631,-217.54,0.000335,31]
[332693445,1721452298642,-217.54,0.000335,31]
[332693446,1721452298651,-217.54,0.000335,31]
[332693447,1721452298660,-217.54,0.000335,31]
[332693448,1721452298671,-217.54,0.000335,31]
[332693449,1721452298680,-217.54,0.000335,31]
[332693450,1721452298689,-217.54,0.000335,31]
[332693451,1721452298699,-217.54,0.000335,31]
[332693452,1721452298708,-217.54,0.000335,31]
[332693453,1721452298717,-217.54,0.000335,31]
[332693454,1721452298727,-217.54,0.000335,31]
[332693455,1721452298737,-217.54,0.000335,31]
[332693456,1721452298746,-217.54,0.000335,31]
[332693457,1721452298756,-217.54,0.000335,31]
[332693458,1721452298766,-151.64406532,0.00033573,7]
[332693459,1721452298776,-153.13738162,0.00033577,7]
[332693460,1721452298785,-151.7227518,0.0003358,7]
[332693461,1721452298795,-977.75,0.00033583,30]
[332693462,1721452298804,-977.75,0.00033583,30]
[332693463,1721452298814,-3387.45244195,0.00033598,15]
[332693464,1721452298823,-648.64032589,0.00033598,15]
[332693465,1721452298832,-1615.31,0.000336,14]
[332693466,1721452298842,-159.61625138,0.00033622,7]
[332693467,1721452298851,-231.082217,0.00033674,7]
[332693468,1721452298861,-225.0,0.0003369,2]
[332693469,1721452298870,-500.0,0.00033698,14]
[332693470,1721452298879,-500.0,0.00033698,14]
[332693471,1721452298888,-500.0,0.00033698,14]
[332693472,1721452298897,-500.0,0.00033698,14]
[332693473,1721452298907,-500.0,0.00033698,14]
[332693474,1721452298916,-1022.34,0.00033698,14]
[332693475,1721452298925,-500.0,0.00033698,14]
[332693476,1721452298935,-500.0,0.00033698,14]
[332693477,1721452298945,-500.0,0.00033698,14]
[332693478,1721452298954,-667.24,0.00033698,14]
[332693479,1721452298963,-500.0,0.00033698,14]
[332693480,1721452298973,-703.85,0.00033698,14]
[332693481,1721452299056,-500.0,0.00033698,14]
[332693482,1721452299066,-500.0,0.00033698,14]
[332693483,1721452299075,-1004.77,0.00033698,14]
[332693484,1721452299085,-500.0,0.00033698,14]
[332693485,1721452299094,-500.0,0.00033698,14]
[332693486,1721452299105,-500.0,0.00033698,14]
[332693487,1721452299115,-500.0,0.00033698,14]
[332693488,1721452299124,-500.0,0.00033698,14]
[332693489,1721452299134,-755.54,0.00033698,14]
[332693490,1721452299144,-624.11,0.00033698,14]
[332693491,1721452299154,-500.0,0.00033698,14]
[332693492,1721452299164,-500.0,0.00033698,14]
[332693493,1721452299173,-500.0,0.00033698,14]
[332693494,1721452299182,-500.0,0.00033698,14]
[332693495,1721452299192,-500.0,0.00033698,14]
[332693496,1721452299201,-203.19738563,0.00033698,14]
[332693497,1721452299211,-500.0,0.00033698,14]
[332693498,1721452299221,-500.0,0.00033698,14]
[332693499,1721452299231,-500.0,0.00033698,14]
[332693500,1721452299240,-500.0,0.00033698,14]
[332693501,1721452299249,-1361.11,0.00033698,14]
[332693502,1721452299259,-500.0,0.00033698,14]
[332693503,1721452299268,-500.0,0.00033698,14]
[332693504,1721452299277,-629.18695598,0.00033698,14]
[332693505,1721452299287,-500.0,0.00033698,14]
[332693506,1721452299297,-328.60191633,0.00033698,14]
[332693507,1721452299306,-500.0,0.00033698,14]
[332693508,1721452299315,-500.0,0.00033698,14]
[332693509,1721452299324,-513.65104991,0.00033698,14]
[332693510,1721452299334,-500.0,0.00033698,14]
[332693511,1721452299344,-905.48,0.00033698,14]
[332693512,1721452299354,-636.07,0.00033698,14]
[332693513,1721452299364,-575.11,0.00033698,14]
[332693514,1721452299374,-500.0,0.00033698,14]
[332693515,1721452299383,-977.86,0.00033698,14]
[332693516,1721452299392,-539.28,0.00033698,14]
[332693517,1721452299402,-1018.11,0.00033698,14]
[332693518,1721452299411,-788.52,0.00033698,14]
[332693519,1721452299421,-500.0,0.00033698,14]
[332693520,1721452299431,-500.0,0.00033698,14]
[332693521,1721452299440,-500.0,0.00033698,14]
[332693522,1721452299449,-507.49245523,0.00033698,14]
[332693523,1721452299459,-663.27,0.00033698,14]
[332693524,1721452299468,-500.0,0.00033698,14]
[332693525,1721452299477,-500.0,0.00033698,14]
[332693526,1721452299487,-500.0,0.00033698,14]
[332693527,1721452299497,-500.0,0.00033698,14]
[332693528,1721452299506,-500.0,0.00033698,14]
[332693529,1721452299515,-500.0,0.00033698,14]
[332693530,1721452299524,-817.64,0.00033698,14]
[332693531,1721452299533,-500.0,0.00033698,14]
[332693532,1721452299542,-600.63,0.00033698,14]
[332693533,1721452299552,-215.795442,0.00033698,7]
[332693534,1721452299562,-923.07,0.00033698,14]
[332693535,1721452299571,-215.795442,0.00033698,7]
[332693536,1721452299580,-500.0,0.00033698,14]
[332693537,1721452299590,-520.79,0.00033698,14]
[332693538,1721452299603,-500.0,0.00033698,14]
[332693539,1721452299612,-500.0,0.00033698,14]
[332693540,1721452299621,-500.0,0.00033698,14]
[332693541,1721452299631,-508.79874496,0.00033698,14]
[332693542,1721452299641,-500.0,0.00033698,14]
[332693543,1721452299650,-500.0,0.00033698,14]
[332693544,1721452299660,-500.0,0.00033698,14]
[332693545,1721452299670,-500.0,0.00033698,14]
[332693546,1721452299680,-500.0,0.00033698,14]
[332693547,1721452299689,-509.03262177,0.00033698,14]
[332693548,1721452299699,-554.46,0.00033698,14]
[332693549,1721452299708,-500.0,0.00033698,14]
[332693550,1721452299717,-500.0,0.00033698,14]
[332693551,1721452299727,-500.0,0.00033698,14]
[332693552,1721452299738,-563.48,0.00033698,14]
[332693553,1721452299748,-500.0,0.00033698,14]
[332693554,1721452299759,-500.0,0.00033698,14]
[332693555,1721452299768,-500.0,0.00033698,14]
[332693556,1721452299778,-500.0,0.00033698,14]
[332693557,1721452299787,-637.65973935,0.00033698,14]
[332693558,1721452299796,-689.0,0.00033698,14]
[332693559,1721452299805,-500.0,0.00033698,14]
[332693560,1721452299815,-500.0,0.00033698,14]
[332693561,1721452299824,-500.0,0.00033698,14]
[332693562,1721452299834,-500.0,0.00033698,14]
[332693563,1721452299844,-500.0,0.00033698,14]
[332693564,1721452299854,-500.0,0.00033698,14]
[332693565,1721452299863,-500.0,0.00033698,14]
[332693566,1721452299873,-500.0,0.00033698,14]
[332693567,1721452299883,-500.0,0.00033698,14]
[332693568,1721452299892,-500.0,0.00033698,14]
[332693569,1721452299902,-500.0,0.00033698,14]
[332693570,1721452299911,-500.0,0.00033698,14]
[332693571,1721452299920,-768.0,0.00033698,14]
[332693572,1721452299930,-500.0,0.00033698,14]
[332693573,1721452299940,-824.05,0.00033698,14]
[332693574,1721452299949,-500.0,0.00033698,14]
[332693575,1721452299959,-500.0,0.00033698,14]
[332693576,1721452299969,-741.81,0.00033698,14]
[332693577,1721452299978,-500.0,0.00033698,14]
[332693578,1721452299988,-500.0,0.00033698,14]
[332693579,1721452299997,-642.24,0.00033698,14]
[332693580,1721452300007,-500.0,0.00033698,14]